[Event "4NCL 2022-2023"]
[Site "Daventry"]
[Date "2023.01.15"]
[Round "4.48"]
[White "Haydon, David L"]
[Black "Varney, Zoe"]
[Result "1-0"]
[ECO "C77"]
[WhiteElo "2289"]
[BlackElo "1954"]
[Annotator "TA"]
[PlyCount "75"]
[EventDate "2022.10.20"]
[EventType "team-tourn"]
[EventCountry "ENG"]
[SourceTitle "playchess.com"]
[Source "ChessBase"]
[SourceQuality "1"]
[TimeControl "40/6000+30:2400+30"]

{[%evp 15,75,-10,-11,-20,-6,-18,-5,-16,-8,-7,18,0,12,-7,8,0,27,16,31,31,21,29,15,30,62,67,97,71,80,45,76,41,29,0,0,0,298,299,291,293,338,334,324,322,841,297,287,283,294,284,278,277,407,391,812,783,915,859,1827,892,891,623]} 1. e4 {[%emt 0:02:08]} e5 {[%emt 0:00:08]} 2. Nf3 {[%emt 0:00:09]} Nc6 {[%emt 0:00:06]} 3. Bb5 {[%emt 0:00:03]} a6 {[%emt 0:00:05]} 4. Ba4 {[%emt 0:00:09]} Nf6 {[%emt 0:00:05]} 5. Qe2 {[%emt 0:00:26]} b5 {[%emt 0:14:44]} 6. Bb3 {[%emt 0:00:40]} Bc5 {[%emt 0:00:07]} 7. c3 {[%emt 0:00:43]} O-O {[%emt 0:03:18]} 8. d3 {[%emt 0:02:00]} d6 {[%emt 0:07:42]} 9. Nbd2 {[%emt 0:01:20] C77: Ruy Lopez: 3...a6 4 Ba4 Nf6, unusual lines.} Bb6 {[%emt 0:04:34]} 10. Nf1 {[%emt 0:01:38]} Ne7 {[%emt 0:08:22]} 11. Ng3 {[%emt 0:15:11] The position is equal.} Ng6 {[%emt 0:14:22]} 12. O-O {[%emt 0:03:18] [#]} Be6 $146 {[%emt 0:23:06]} ({Predecessor:} 12... c6 13. a4 Be6 14. Bxe6 fxe6 15. Ng5 Qe7 16. Nh3 d5 17. Be3 Bc7 18. Nh5 Nd7 {½-½ Boulay,D (2056)-Gravel,S (2276) Montreal Class-A 2004 (4)}) 13. Be3 {[%emt 0:01:54]} c5 {[%emt 0:06:21]} 14. Rfd1 {[%emt 0:29:53]} Qc7 {[%emt 0:07:16]} (14... Nf4 {keeps more tension.} 15. Qf1 Ng4 16. d4 Bxb3 17. axb3 cxd4 18. cxd4 Ne6) 15. h3 {[%emt 0:03:22]} Rfe8 {[%emt 0:05:12]} 16. Bxe6 {[%emt 0:02:19]} Rxe6 {[%emt 0:03:28]} 17. a4 {[%emt 0:02:12]} Rd8 {[%emt 0:01:44]} 18. axb5 {[%emt 0:08:08]} axb5 {[%emt 0:00:02]} 19. c4 {[%emt 0:00:15]} b4 {[%emt 0:03:22]} 20. Nf5 {[%emt 0:03:08]} Nd7 {[%emt 0:01:53]} 21. g3 {[%emt 0:07:00]} Ree8 {[%emt 0:00:37]} 22. Kg2 {[%emt 0:01:05]} Ngf8 {[%emt 0:00:40]} 23. N3h4 {[%emt 0:03:02] White has more active pieces.} (23. Bg5 $5 {[%cal Rg5d8]} f6 24. Bd2 $14) 23... Ne6 {[%emt 0:02:19]} 24. Qg4 {[%emt 0:00:19][%cal Of5g7] Hoping for Nxg7!} Nf6 {[%emt 0:00:21]} 25. Qf3 {[%emt 0:00:02][%cal Of5g7] Threatens to win with Nxg7!} Ra8 $2 {[%emt 0:00:43][%mdl 8192] [#]} (25... g6 $11 {and Black stays safe.}) 26. Nxg7 $1 $18 {[%emt 0:01:26][%mdl 576] Discovered Attack} Nxg7 {[%emt 0:01:00]} (26... Kxg7 27. Bh6+) 27. Qxf6 {[%emt 0:00:03] And now Bh6 would win.} Qd8 {[%emt 0:01:11]} 28. Qf3 {[%emt 0:00:43] aiming for Nf5.} Qd7 {[%emt 0:00:21]} 29. Bh6 {[%emt 0:01:00]} Qe6 {[%emt 0:01:16]} (29... f6 30. Bxg7 Kxg7 31. Nf5+ Kh8) 30. Bxg7 $2 {[%emt 0:00:45]} (30. Rxa8 Rxa8 31. Nf5) 30... Kxg7 {[%emt 0:00:01]} 31. Nf5+ {[%emt 0:00:09][%cal Bh4f5,Bf5e3,Be3d5][%mdl 32]} Kh8 {[%emt 0:00:38]} 32. Qg4 {[%emt 0:00:24][%csl Gf5][%cal Rg4g7] [#]} Qf6 {[%emt 0:00:02] Inhibits Qg7+.} 33. Ne3 {[%emt 0:00:28] Nd5 is the strong threat.} Rxa1 {[%emt 0:00:52]} (33... Qe6 $142 34. Nd5 Ba5) 34. Rxa1 {[%emt 0:00:03] Strongly threatening Nd5.} Rg8 $2 {[%emt 0:00:08] Black is weak on the light squares} (34... Qe6 35. Ra6 Rb8) 35. Nd5 {[%emt 0:00:24][%csl LRb6,LRf6] White is clearly winning.} Qd8 {[%emt 0:01:05]} 36. Qf5 {[%emt 0:00:02]} Rg7 {[%emt 0:00:08]} 37. Ra6 {[%emt 0:00:24]} (37. Nxb6 $142 Rg8 38. Ra8 {[%mdl 64] Deflection} Qxa8 39. Qf6+ Rg7 40. Nxa8 h6 41. Nc7 Kg8 42. Nd5) 37... Ba5 {[%emt 0:00:32]} 38. Rc6 {[%emt 0:00:06] Weighted Error Value: White=0.32/Black=0.42} 1-0

[Event "4NCL 2022-2023"]
[Site "Daventry"]
[Date "2023.02.11"]
[Round "5.1"]
[White "Williams, Simon K"]
[Black "Ansell, Simon T"]
[Result "1/2-1/2"]
[ECO "D11"]
[WhiteElo "2465"]
[BlackElo "2345"]
[Annotator "TA"]
[PlyCount "68"]
[EventDate "2022.10.20"]
[EventType "team-tourn"]
[EventCountry "ENG"]
[SourceTitle "playchess.com"]
[Source "ChessBase"]
[SourceQuality "1"]
[TimeControl "40/6000+30:2400+30"]

{[%evp 9,68,-20,-10,-8,-4,-8,0,-4,0,-6,-16,-14,-15,-16,0,-44,-12,0,16,15,19,0,22,17,93,26,24,0,14,12,0,0,113,89,253,0,0,0,0,0,0,-291,-122,-125,-120,-118,-116,-128,-69,-54,24,15,16,12,14,8,10,0,21,21,14]} 1. d4 {[%emt 0:05:27]} d5 {[%emt 0:00:29]} 2. c4 {[%emt 0:00:24]} c6 {[%emt 0:00:06]} 3. Nf3 {[%emt 0:00:21]} Nf6 {[%emt 0:00:14]} 4. Qc2 {[%emt 0:00:43]} dxc4 {[%emt 0:01:43]} 5. e4 {[%emt 0:00:50]} b5 {[%emt 0:02:30]} 6. b3 {[%emt 0:00:28] D11: Slav Defence: 3 Nf3 sidelines and 3...Nf6 4 e3 Bg4.} cxb3 {[%emt 0:02:23]} 7. axb3 {[%emt 0:00:10]} e6 {[%emt 0:02:16]} 8. Bd3 $1 {[%emt 0:04:12][%mdl 4] is now more promising than 8.Bd2.} Bb7 {[%emt 0:02:17]} 9. O-O {[%emt 0:01:56]} Be7 {[%emt 0:08:30]} 10. Bd2 {[%emt 0:04:06]} a5 {[%emt 0:00:41]} 11. Rc1 {[%emt 0:00:53]} h6 {[%emt 0:01:32]} 12. Nc3 {[%emt 0:00:41]} Na6 {[%emt 0:08:33]} 13. e5 {[%emt 0:00:07]} Nd7 {[%emt 0:01:37]} 14. Be2 {[%emt 0:02:27][%mdl 1024] White has compensation.} Nb4 {[%emt 0:23:03]} 15. Qe4 $36 {[%emt 0:00:11][%mdl 2048] [#] White fights for an advantage.} Qb6 $146 {[%emt 0:00:36]} ({Predecessor:} 15... O-O 16. Na2 Qb6 17. Nxb4 Bxb4 18. Bd3 f5 19. exf6 Rxf6 20. Qh7+ Kf7 21. Be3 Qc7 22. Bxb5 {0-1 Erdogdu,M (2411)-Solak,D (2603) TUR-chT Ankara 2018 (1.6)}) 16. Qg4 {[%emt 0:03:44]} g6 {[%emt 0:06:03] [#]} (16... Kf8 $1 $11) 17. d5 {[%emt 0:16:55]} h5 $11 {[%emt 0:11:54]} 18. Qf4 {[%emt 0:02:34]} (18. Qg3 {simplifies} Nxd5 19. Nxd5 cxd5 20. b4) 18... exd5 {[%emt 0:13:47] [#]} 19. e6 $1 {[%emt 0:08:07]} fxe6 {[%emt 0:00:12][%cal Od5d4] And now ...d4! would win.} 20. Be3 {[%emt 0:00:29]} Qd8 {[%emt 0:02:36]} (20... c5 $1 $11 21. Nxb5 O-O-O) 21. Nxb5 {[%emt 0:13:30] White has more active pieces. The black rooks are badly placed.} e5 $2 {[%emt 0:04:04]} (21... cxb5 $16 {might work better.} 22. Bxb5 Rh7) 22. Nxe5 $2 {[%emt 0:02:13]} ({Only move:} 22. Qg3 $1 $18 {[%cal Rg3g6]} Kf7 23. Ng5+ {[%mdl 64] Deflection} (23. Nxe5+ Nxe5 24. Qxe5 Bc8 $15) 23... Bxg5 24. Nd6+ Kg7 25. Bxg5) 22... Nxe5 {[%emt 0:00:10]} (22... Rf8 $2 23. Nxc6 Rxf4 24. Nxd8 Kxd8 25. Bxf4 $18) 23. Qxe5 {[%emt 0:00:31]} O-O {[%emt 0:00:49]} 24. Nc7 {[%emt 0:12:52]} Bf6 {[%emt 0:00:39] Against Nxa8} 25. Qe6+ {[%emt 0:01:15][%mdl 8192]} (25. Qg3 $1 $11 {and White is okay.} Bxa1 26. Nxa8 (26. Qxg6+ Bg7 $17)) 25... Kg7 {[%emt 0:02:42]} (25... Rf7 $19 26. Nxa8 Bc8 27. Qxc8 (27. Bb6 $2 Bxe6 {[%mdl 64] Discovered Attack} 28. Bxd8 Bxd8 $19) 27... Qxc8 28. Rxa5 Qe6) 26. Bb6 $17 {[%emt 0:04:44]} Rc8 {[%emt 0:04:47][%cal Oc8c7]} 27. Rxa5 {[%emt 0:08:27]} ({But not} 27. Bxa5 $2 Rxc7 28. Ra4 (28. Bxb4 $2 {loses.} Re8 $19) 28... Qe7 29. Qxe7+ Rxe7 $19) 27... Rxc7 {[%emt 0:00:43]} 28. Qe3 {[%emt 0:00:18][%cal Oe3g3] [#] Repels Re7} Rff7 {[%emt 0:02:38]} 29. Qd2 $15 {[%emt 0:02:37] [#]} Qf8 {[%emt 0:02:23]} 30. Bc5 {[%emt 0:14:18]} (30. Ra4 $5) 30... Be7 {[%emt 0:00:31] aiming for ...Bxc5. The position is equal.} 31. Qxb4 {[%emt 0:00:00]} Bxc5 {[%emt 0:00:05]} 32. Raxc5 {[%emt 0:00:00]} Qe7 {[%emt 0:00:37]} 33. Bf3 {[%emt 0:00:00][%cal Of3d5] Strongly threatening Bxd5!} Rd7 {[%emt 0:00:13]} 34. Qd2 {[%emt 0:00:00]} Qf6 {[%emt 0:00:19] An exciting game.   Weighted Error Value: White=0.26 (precise) /Black=0.30} 1/2-1/2

[Event "4NCL 2022-2023"]
[Site "Daventry"]
[Date "2023.02.11"]
[Round "5.2"]
[White "Gormally, Daniel W"]
[Black "Hebden, Mark L"]
[Result "1/2-1/2"]
[ECO "C90"]
[WhiteElo "2448"]
[BlackElo "2454"]
[Annotator "TA"]
[PlyCount "105"]
[EventDate "2022.10.20"]
[EventType "team-tourn"]
[EventCountry "ENG"]
[SourceTitle "playchess.com"]
[Source "ChessBase"]
[SourceQuality "1"]
[TimeControl "40/6000+30:2400+30"]

{[%evp 24,105,25,0,0,0,0,0,0,0,0,0,0,-20,-28,-25,-38,-49,-43,-47,-46,-34,-41,-33,-35,-28,-6,-6,-7,-8,0,-9,0,-58,-58,-83,-91,-103,-91,-107,-111,-106,-77,-83,-67,-61,-57,-70,-61,-114,-96,-110,-102,-207,-229,-229,-226,-174,-52,-46,-31,-31,-29,-31,-32,-28,-29,-27,-25,-35,0,0,0,0,57,50,50,50,50,50,50,50,50,50]} 1. e4 {[%emt 0:00:03]} e5 {[%emt 0:00:45]} 2. Nf3 {[%emt 0:00:07]} Nc6 {[%emt 0:00:23]} 3. Bb5 {[%emt 0:00:24]} a6 {[%emt 0:00:40]} 4. Ba4 {[%emt 0:00:06]} Nf6 {[%emt 0:00:33]} 5. O-O {[%emt 0:00:07]} Be7 {[%emt 0:00:14]} 6. Re1 {[%emt 0:00:32]} b5 {[%emt 0:00:39]} 7. Bb3 {[%emt 0:00:04]} O-O {[%emt 0:02:33]} 8. d3 {[%emt 0:01:04]} d6 {[%emt 0:02:01]} 9. c3 {[%emt 0:02:24]} Na5 {[%emt 0:02:50]} 10. Bc2 {[%emt 0:00:07]} c5 {[%emt 0:00:06]} 11. Nbd2 {[%emt 0:00:18][%cal Bb1d2,Bd2f1,Bf1e3][%mdl 32]} Re8 {[%emt 0:02:56]} 12. Nf1 {[%emt 0:00:39]} h6 {[%emt 0:03:57]} 13. Ne3 {[%emt 0:01:07]} Bf8 {[%emt 0:04:23] C90: Closed Ruy Lopez with 7...d6: Early deviations.} 14. Bd2 {[%emt 0:02:14]} Nc6 {[%emt 0:02:10]} 15. a4 {[%emt 0:05:02]} Be6 {[%emt 0:02:33] The position is equal.} 16. h3 {[%emt 0:01:07] [#]} Qd7 $146 {[%emt 0:15:36]} ({Predecessor:} 16... d5 17. exd5 Nxd5 18. Ng4 f6 19. Bb1 h5 20. Ngh2 Bf7 21. axb5 axb5 22. Rxa8 Qxa8 23. Nf1 Qd8 24. Ng3 g6 25. Ne4 Be7 26. Ng3 Bf8 27. Ne4 Be7 28. Ng3 {½-½ Gomez,J (2490)-Senador,E (2298) Subic Bay op 2016 (1)}) 17. Nh2 {[%emt 0:07:59]} b4 {[%emt 0:13:03]} 18. cxb4 {[%emt 0:12:18]} cxb4 {[%emt 0:00:44]} 19. a5 {[%emt 0:07:24]} Qb7 {[%emt 0:00:43]} 20. Bb3 {[%emt 0:06:29]} Bxb3 $1 {[%emt 0:04:07]} 21. Qxb3 {[%emt 0:00:08] [#]} d5 $1 {[%emt 0:00:59]} 22. Nhg4 {[%emt 0:09:53]} Nxg4 {[%emt 0:00:33]} ({Much less strong is} 22... dxe4 23. Nxf6+ gxf6 24. dxe4 $14) 23. hxg4 {[%emt 0:01:00]} dxe4 {[%emt 0:01:03]} 24. dxe4 {[%emt 0:00:07]} Rad8 {[%emt 0:04:49]} 25. Nd5 {[%emt 0:04:06]} Ne7 {[%emt 0:00:18][%cal Re7d5]} 26. Nxe7+ {[%emt 0:00:05]} (26. Qxb4 {simplifies} Qxb4 27. Bxb4 Nxd5 28. Bxf8 Kxf8 29. exd5 Rxd5 30. b4) 26... Bxe7 {[%emt 0:00:37]} 27. Be3 {[%emt 0:01:16]} Qb5 {[%emt 0:04:56]} 28. Rac1 {[%emt 0:14:13]} ({White should play} 28. Rec1 $11) 28... Qxa5 $15 {[%emt 0:05:05]} 29. Rc6 {[%emt 0:04:19]} Qb5 $36 {[%emt 0:02:42][%mdl 2048] Wards off Bb6. Black has strong initiative.} 30. Rb6 {[%emt 0:06:58]} Qd7 {[%emt 0:06:03]} 31. Rxa6 {[%emt 0:00:46]} Qxg4 {[%emt 0:00:08]} 32. Qc4 {[%emt 0:02:48]} Rc8 {[%emt 0:03:40]} 33. Qd5 {[%emt 0:00:45]} Bf8 {[%emt 0:06:10]} (33... Red8 {with more complications.} 34. Qxe5 Bf6 35. Rxf6 gxf6 36. Qxf6 Rd1) 34. Ra7 {[%emt 0:01:31]} Qe6 {[%emt 0:03:23]} 35. Rd1 {[%emt 0:00:51]} Qxd5 {[%emt 0:05:20]} 36. Rxd5 {[%emt 0:01:13]} (36. exd5 $15 Bc5 37. Rb7 (37. Bxc5 Rxc5 38. d6 Rd8 $17)) 36... Rc4 {[%emt 0:01:03]} 37. Rdd7 {[%emt 0:00:43]} f6 $1 {[%emt 0:01:31]} 38. f3 {[%emt 0:00:05]} (38. Rac7 $17 Rxe4 39. b3) 38... Rec8 $1 $19 {[%emt 0:00:15]} 39. Rd2 {[%emt 0:04:39] [#]} Rc2 $1 {[%emt 0:00:45]} 40. Rad7 {[%emt 0:00:04] [#]} b3 {[%emt 0:02:00]} ({Better is} 40... Bc5 $1 $19 {[%cal Rc5e3]} 41. Bxc5 R8xc5) 41. Rb7 $15 {[%emt 0:43:20]} Bc5 {[%emt 0:40:40]} 42. Rdd7 $1 {[%emt 0:00:14]} Bxe3+ {[%emt 0:00:23]} 43. Kh2 {[%emt 0:00:03]} Bc5 {[%emt 0:00:26]} 44. Rxg7+ {[%emt 0:00:05]} Kf8 {[%emt 0:00:04][%cal Oc8b8] Strongly threatening ...Rb8!} 45. Rgf7+ {[%emt 0:02:35][%cal Bg7f7,Bf7f6,Bf6e6][%mdl 32]} Ke8 {[%emt 0:00:24][%cal Oc8b8] Threatens to win with ...Rb8!} 46. Rxf6 {[%emt 0:00:30]} Rxb2 {[%emt 0:07:59]} 47. Re6+ {[%emt 0:00:19]} Kd8 {[%emt 0:00:00] ...Rc7 is the strong threat.} 48. Rxh6 {[%emt 0:00:00] White threatens Rh8+ and mate.} Rc7 {[%emt 0:00:00]} (48... Bf8 $11 49. Rh8 Ke8) 49. Rh8+ $14 {[%emt 0:00:00] White is slightly better.} Kd7 {[%emt 0:00:00]} 50. Rh7+ {[%emt 0:00:00]} Be7 {[%emt 0:00:00] [#]} 51. Rxe7+ $1 {[%emt 0:00:00][%mdl 64] Deflection} Kxe7 {[%emt 0:00:00]} 52. Rxc7+ {[%emt 0:00:00]} Kd6 {[%emt 0:00:00]} 53. Rc3 $1 {[%emt 0:00:00] Weighted Error Value: White=0.08 (flawless) /Black=0.11 (very precise)} 1/2-1/2

[Event "4NCL 2022-2023"]
[Site "Daventry"]
[Date "2023.02.11"]
[Round "5.3"]
[White "Eggleston, David J"]
[Black "Ledger, Andrew J"]
[Result "1/2-1/2"]
[ECO "B12"]
[WhiteElo "2364"]
[BlackElo "2313"]
[Annotator "TA"]
[PlyCount "54"]
[EventDate "2022.10.20"]
[EventType "team-tourn"]
[EventCountry "ENG"]
[SourceTitle "playchess.com"]
[Source "ChessBase"]
[SourceQuality "1"]
[TimeControl "40/6000+30:2400+30"]

{[%evp 9,54,19,19,-5,0,0,0,0,0,-7,-9,-51,-59,-50,-31,-30,-4,-12,0,-7,0,0,0,-12,75,0,0,0,0,0,0,0,0,0,0,0,0,0,0,0,0,0,0,0,0,0,0]} 1. e4 c6 {[%emt 0:59:43]} 2. d4 d5 {[%emt 0:00:30]} 3. e5 Bf5 {[%emt 0:00:30]} 4. h4 a6 {[%emt 0:00:30]} 5. g4 Bd7 {[%emt 0:00:30][%cal Oh7h5] Black is weak on the dark squares} 6. c3 {B12: Caro-Kann: Advance Variation.} e6 {[%emt 0:00:30]} 7. f4 c5 {[%emt 0:00:30]} 8. Nf3 Nc6 {[%emt 0:00:30]} 9. h5 {[#]} Nh6 $146 {[%emt 0:00:30]} ({Predecessor:} 9... Rc8 10. Rh2 Qb6 11. a3 cxd4 12. cxd4 Na5 13. Nc3 Nb3 14. Rb1 Nxc1 15. Rxc1 Ne7 {½-½ Manik,M (2405)-Epishin,V (2557) Lingen Gutman rap op rapid 2015 (8)}) 10. Rg1 Qb6 {[%emt 0:00:30]} 11. Qb3 Qxb3 {[%emt 0:00:30]} 12. axb3 cxd4 {[%emt 0:00:30]} 13. Nxd4 Nxd4 {[%emt 0:00:30]} 14. cxd4 g6 {[%emt 0:00:30]} 15. hxg6 hxg6 {[%emt 0:00:30]} 16. Nc3 Bb4 {[%emt 0:00:30] [#]} (16... Ng8 $11) 17. Bd2 (17. Rh1 $1 $16) 17... Ng8 $11 {[%emt 0:00:30][%cal Bh6g8,Bg8e7,Be7c6,Bc6b4][%mdl 32] The position is equal.} 18. Na4 Bxd2+ {[%emt 0:00:30]} 19. Kxd2 Bxa4 {[%emt 0:00:30]} 20. bxa4 Ne7 {[%emt 0:00:30]} 21. Be2 Nc6 {[%emt 0:00:30] [#] And now ...Kd7 would win.} 22. Rh1 $1 Ke7 {[%emt 0:00:30]} 23. Ke3 Rac8 {[%emt 0:00:30]} 24. Bd3 Nb4 {[%emt 0:00:30]} 25. Kd2 Nc6 {[%emt 0:00:30]} 26. Ke3 Nb4 {[%emt 0:00:30]} 27. Kd2 Nc6 {[%emt 0:00:30] Weighted Error Value: White=0.08 (flawless) /Black=0.10 (very precise)} 1/2-1/2

[Event "4NCL 2022-2023"]
[Site "Daventry"]
[Date "2023.02.11"]
[Round "5.4"]
[White "Bates, Richard A"]
[Black "Pert, Richard G"]
[Result "1/2-1/2"]
[ECO "E08"]
[WhiteElo "2329"]
[BlackElo "2411"]
[Annotator "TA"]
[PlyCount "52"]
[EventDate "2022.10.20"]
[EventType "team-tourn"]
[EventCountry "ENG"]
[SourceTitle "playchess.com"]
[Source "ChessBase"]
[SourceQuality "1"]
[TimeControl "40/6000+30:2400+30"]

{[%evp 18,52,21,30,17,7,23,0,0,0,0,-4,-10,-19,-19,-25,-12,-34,-26,-27,-23,-55,-50,-41,-44,-53,-40,-39,-39,-25,-13,-26,0,-27,0,0,0]} 1. d4 {[%emt 0:00:32]} d5 {[%emt 0:00:14]} 2. c4 {[%emt 0:00:42]} e6 {[%emt 0:00:16]} 3. Nf3 {[%emt 0:00:28]} Nf6 {[%emt 0:00:07]} 4. g3 {[%emt 0:00:20]} Bb4+ {[%emt 0:00:28]} 5. Bd2 {[%emt 0:00:23]} Be7 {[%emt 0:00:06]} 6. Bg2 {[%emt 0:00:12]} O-O {[%emt 0:00:08]} 7. O-O {[%emt 0:00:14]} Nbd7 {[%emt 0:00:11]} 8. Qc2 {[%emt 0:02:25]} c6 {[%emt 0:02:21]} 9. Bf4 {[%emt 0:07:12]} Ne4 {[%emt 0:06:06]} 10. Nc3 {[%emt 0:06:22]} g5 {[%emt 0:01:50] [#] Strongly threatening ...Nxc3. E08: Closed Catalan: Main Line: 7 Qc2.} 11. Be3 {[%emt 0:12:27]} Nd6 {[%emt 0:01:14]} 12. cxd5 {[%emt 0:07:35]} exd5 {[%emt 0:01:15]} 13. Rad1 {[%emt 0:00:56]} Nb6 {[%emt 0:04:23]} 14. b3 {[%emt 0:02:11]} Bf5 {[%emt 0:03:15]} 15. Qc1 {[%emt 0:01:14][%cal Re3g5]} f6 {[%emt 0:03:44] [#]} 16. Ne1 $146 {[%emt 0:03:25]} ({Predecessor:} 16. Nd2 Bg6 17. f3 f5 18. Bf2 g4 19. fxg4 fxg4 20. e4 Bg5 21. exd5 cxd5 22. Nxd5 {0-1 Moayed,O (2125)-Cordova,E (2609) Olympiad-43 Batumi 2018 (2.1)}) 16... Qe8 {[%emt 0:13:43]} 17. f3 {[%emt 0:04:39]} Qg6 {[%emt 0:15:11]} 18. Bf2 {[%emt 0:03:46]} Rae8 {[%emt 0:00:41]} 19. Nd3 {[%emt 0:02:04]} Bxd3 $1 {[%emt 0:04:35]} 20. Rxd3 {[%emt 0:00:30]} f5 {[%emt 0:00:08]} 21. Re1 {[%emt 0:22:10]} Bf6 {[%emt 0:02:43]} 22. Qc2 {[%emt 0:02:48][%cal Oe2e4]} Bg7 {[%emt 0:09:46]} 23. Rdd1 {[%emt 0:03:38]} Kh8 {[%emt 0:01:39]} 24. Qd3 {[%emt 0:04:14]} Qf7 {[%emt 0:01:48]} 25. Rf1 {[%emt 0:00:46]} Re6 {[%emt 0:02:24]} 26. e4 {[%emt 0:07:35]} fxe4 {[%emt 0:11:53] Weighted Error Value: White=0.09 (flawless) /Black=0.05 (flawless)} 1/2-1/2